[Event "Turkish Cup 2024"]
[Site "Denizli"]
[Date "2024.08.04"]
[Round "8"]
[White "Kilic, Cihan"]
[Black "Karaca, Yigit"]
[Result "0-1"]
[ECO "D52"]
[WhiteElo "1869"]
[BlackElo "1879"]
[Annotator "NA RC"]
[PlyCount "64"]
[EventDate "2024.08.01"]
[EventType "swiss"]
[EventCountry "TUR"]
[SourceTitle "playchess.com"]
[Source "ChessBase"]
[SourceQuality "1"]
[TimeControl "5400+30"]

1. d4 {[%emt 0:06:00]} d5 {[%emt 0:05:00]} 2. Nf3 {[%emt 0:01:30]} Nf6 {[%emt 0:00:30]} 3. c4 {[%emt 0:00:30]} e6 {[%emt 0:00:00]} 4. Nc3 {[%emt 0:00:30]} Nbd7 {[%emt 0:05:00]} 5. Bg5 {[%emt 0:01:30]} c6 {[%emt 0:01:30]} 6. e3 {[%emt 0:00:30]} Qa5 {[%emt 0:01:30]} 7. Qc2 {[%emt 0:07:30]} Bb4 {[%emt 0:00:30]} 8. Bxf6 {[%emt 0:02:30]} Nxf6 {[%emt 0:01:30]} 9. Bd3 {[%emt 0:02:30]} dxc4 {[%emt 0:12:30]} 10. Bxc4 {[%emt 0:00:30]} O-O {[%emt 0:11:30]} 11. O-O {[%emt 0:00:30]} Bd6 {[%emt 0:02:30]} 12. e4 {[%emt 0:02:30]} e5 {[%emt 0:02:30]} 13. dxe5 {[%emt 0:11:30]} Bxe5 {[%emt 0:00:30]} 14. b4 {[%emt 0:01:30]} Qc7 {[%emt 0:00:30]} 15. Rae1 {[%emt 0:02:30]} a5 {[%emt 0:10:30]} 16. b5 {[%emt 0:01:30]} Bxc3 {[%emt 0:13:30]} 17. b6 {[%emt 0:00:30]} Qxb6 {[%emt 0:01:30]} 18. Qxc3 {[%emt 0:00:30]} Qb4 {[%emt 0:01:30]} 19. Qc2 {[%emt 0:07:30]} Qe7 {[%emt 0:11:52]} 20. Nd4 {[%emt 0:08:30]} Rd8 {[%emt 0:12:14]} 21. e5 {[%emt 0:02:30]} Nd5 {[%emt 0:01:10]} 22. Qe4 {[%emt 0:00:30]} Be6 {[%emt 0:00:36]} 23. Bd3 {[%emt 0:00:30]} g6 {[%emt 0:00:06]} 24. Kh1 {[%emt 0:03:30]} Nc3 {[%emt 0:02:51]} 25. Qf4 {[%emt 0:00:30]} Qd7 {[%emt 0:00:52]} 26. Nxe6 {[%emt 0:01:30]} fxe6 {[%emt 0:00:12]} 27. Re3 {[%emt 0:00:30]} Nd5 {[%emt 0:00:08]} 28. Qg4 {[%emt 0:01:30]} Nxe3 {[%emt 0:00:14]} 29. fxe3 {[%emt 0:00:00]} Rf8 {[%emt 0:01:01]} 30. Rd1 {[%emt 0:01:00]} Qxd3 {[%emt 0:00:36]} 31. Qxe6+ {[%emt 0:01:30]} Kh8 {[%emt 0:00:08]} 32. Rg1 {[%emt 0:00:30]} Rae8 {[%emt 0:00:29]} 0-1

[Event "Turkish Cup 2024"]
[Site "Denizli"]
[Date "2024.08.04"]
[Round "8"]
[White "Koseoglu, Omer Umut"]
[Black "Sezis, Doruk"]
[Result "0-1"]
[ECO "B23"]
[WhiteElo "1841"]
[BlackElo "1932"]
[Annotator "RC"]
[PlyCount "71"]
[EventDate "2024.08.01"]
[EventType "swiss"]
[EventCountry "TUR"]
[SourceTitle "playchess.com"]
[Source "ChessBase"]
[SourceQuality "1"]
[TimeControl "5400+30"]

1. e4 {[%emt 0:04:00]} c5 {[%emt 0:04:00]} 2. Nc3 {[%emt 0:00:00]} Nc6 {[%emt 0:02:30]} 3. Bb5 {[%emt 0:00:00]} g6 {[%emt 0:00:30]} 4. Bxc6 {[%emt 0:00:30]} dxc6 {[%emt 0:00:30]} 5. Nf3 {[%emt 0:00:30]} Bg7 {[%emt 0:00:00]} 6. O-O {[%emt 0:00:30]} e5 {[%emt 0:01:00]} 7. h3 {[%emt 0:01:30]} Qd6 {[%emt 0:00:00]} 8. d3 {[%emt 0:01:30]} Nf6 {[%emt 0:00:00]} 9. a4 {[%emt 0:00:00]} O-O {[%emt 0:01:30]} 10. a5 {[%emt 0:00:00]} Nd7 {[%emt 0:15:30]} 11. Ra4 {[%emt 0:10:30]} Re8 {[%emt 0:09:30]} 12. Be3 {[%emt 0:07:30]} Nf8 {[%emt 0:02:30]} 13. Qa1 {[%emt 0:00:30]} Ne6 {[%emt 0:02:30]} 14. Qa3 {[%emt 0:00:30]} Rb8 {[%emt 0:00:30]} 15. b4 {[%emt 0:04:30]} cxb4 {[%emt 0:02:30]} 16. Qxb4 {[%emt 0:00:30]} c5 {[%emt 0:00:30]} 17. Qb3 {[%emt 0:01:30]} Nd4 {[%emt 0:08:30]} 18. Bxd4 {[%emt 0:00:30]} exd4 {[%emt 0:01:30]} 19. Nb1 {[%emt 0:03:30]} Be6 {[%emt 0:01:30]} 20. Qb2 {[%emt 0:01:30]} b5 {[%emt 0:00:30]} 21. axb6 {[%emt 0:00:00]} axb6 {[%emt 0:00:30]} 22. Nbd2 {[%emt 0:00:00]} b5 {[%emt 0:00:30]} 23. Ra7 {[%emt 0:00:30]} h6 {[%emt 0:06:30]} 24. Qa3 {[%emt 0:01:30]} Red8 {[%emt 0:02:30]} 25. e5 {[%emt 0:01:30]} Qd5 {[%emt 0:07:30]} 26. Rc7 {[%emt 0:03:30]} Rbc8 {[%emt 0:00:30]} 27. Rxc8 {[%emt 0:00:30]} Rxc8 {[%emt 0:00:30]} 28. Qa5 {[%emt 0:00:30]} Bd7 {[%emt 0:02:30]} 29. Re1 {[%emt 0:02:30]} f6 {[%emt 0:03:30]} 30. exf6 {[%emt 0:04:30]} Bxf6 {[%emt 0:00:30]} 31. Ne4 {[%emt 0:00:00]} Bg7 {[%emt 0:00:30]} 32. Qa6 {[%emt 0:02:00]} Qc6 {[%emt 0:00:30]} 33. Ra1 {[%emt 0:00:30]} c4 {[%emt 0:01:30]} 34. Qxc6 {[%emt 0:00:00]} Bxc6 {[%emt 0:00:30]} 35. Nfd2 {[%emt 0:01:00]} c3 {[%emt 0:00:00]} 36. Nb3 {[%emt 0:00:30]} 0-1

[Event "Turkish Cup 2024"]
[Site "Denizli"]
[Date "2024.08.04"]
[Round "8"]
[White "Sibli, Murat Yigit"]
[Black "Gunal, Yusuf Kursat"]
[Result "0-1"]
[ECO "B22"]
[WhiteElo "1836"]
[BlackElo "1773"]
[Annotator "NA RC"]
[PlyCount "72"]
[EventDate "2024.08.01"]
[EventType "swiss"]
[EventCountry "TUR"]
[SourceTitle "playchess.com"]
[Source "ChessBase"]
[SourceQuality "1"]
[TimeControl "5400+30"]

1. e4 {[%emt 0:01:00]} c5 {[%emt 0:01:00]} 2. c3 {[%emt 0:00:30]} Nf6 {[%emt 0:00:00]} 3. e5 {[%emt 0:00:30]} Nd5 {[%emt 0:00:00]} 4. Nf3 {[%emt 0:00:30]} e6 {[%emt 0:02:30]} 5. d4 {[%emt 0:04:30]} cxd4 {[%emt 0:00:30]} 6. cxd4 {[%emt 0:01:30]} d6 {[%emt 0:00:00]} 7. exd6 {[%emt 0:02:30]} Bxd6 {[%emt 0:00:00]} 8. Nc3 {[%emt 0:00:00]} Nxc3 {[%emt 0:00:30]} 9. bxc3 {[%emt 0:01:00]} Nd7 {[%emt 0:01:30]} 10. Bd3 {[%emt 0:09:30]} O-O {[%emt 0:00:30]} 11. O-O {[%emt 0:00:30]} Qc7 {[%emt 0:00:30]} 12. c4 {[%emt 0:13:30]} b6 {[%emt 0:00:30]} 13. h3 {[%emt 0:05:30]} Bb7 {[%emt 0:00:30]} 14. Bb2 {[%emt 0:04:30]} h6 {[%emt 0:01:30]} 15. Re1 {[%emt 0:05:30]} Rfe8 {[%emt 0:00:30]} 16. Rc1 {[%emt 0:08:30]} e5 {[%emt 0:08:30]} 17. d5 {[%emt 0:18:30]} Nc5 {[%emt 0:08:30]} 18. Bb1 {[%emt 0:03:25]} Rad8 {[%emt 0:03:30]} 19. Nh4 {[%emt 0:05:11]} Bc8 {[%emt 0:03:30]} 20. Bf5 {[%emt 0:06:50]} Qe7 {[%emt 0:15:30]} 21. Qg4 {[%emt 0:02:13]} Qg5 {[%emt 0:05:30]} 22. Rcd1 {[%emt 0:04:06]} Ba6 {[%emt 0:02:30]} 23. Rc1 {[%emt 0:01:40]} Qxg4 {[%emt 0:07:30]} 24. Bxg4 {[%emt 0:00:31]} Nd3 {[%emt 0:00:30]} 25. Bc3 {[%emt 0:00:30]} Nxc1 {[%emt 0:01:30]} 26. Rxc1 {[%emt 0:00:02]} Bxc4 {[%emt 0:00:30]} 27. Nf5 {[%emt 0:00:49]} Bxa2 {[%emt 0:01:30]} 28. Ra1 {[%emt 0:00:32]} Bxd5 {[%emt 0:01:30]} 29. Rxa7 {[%emt 0:00:20]} Bc5 {[%emt 0:00:30]} 30. Rc7 {[%emt 0:00:36]} Be6 {[%emt 0:01:30]} 31. Kf1 {[%emt 0:00:41]} h5 {[%emt 0:02:30]} 32. Bxh5 {[%emt 0:00:30]} g6 {[%emt 0:00:30]} 33. Bxg6 {[%emt 0:00:31]} fxg6 {[%emt 0:00:30]} 34. Nh6+ {[%emt 0:00:22]} Kf8 {[%emt 0:01:30]} 35. f4 {[%emt 0:00:32]} Bc4+ {[%emt 0:00:30]} 36. Ke1 {[%emt 0:00:30]} exf4+ {[%emt 0:00:30]} 0-1

[Event "Turkish Cup 2024"]
[Site "Denizli"]
[Date "2024.08.04"]
[Round "8"]
[White "Bilir, Ibrahim"]
[Black "Yasin, Hur"]
[Result "0-1"]
[ECO "C01"]
[WhiteElo "1830"]
[BlackElo "1879"]
[Annotator "NA COMBH"]
[PlyCount "88"]
[EventDate "2024.08.01"]
[EventType "swiss"]
[EventCountry "TUR"]
[SourceTitle "playchess.com"]
[Source "ChessBase"]
[SourceQuality "1"]
[TimeControl "5400+30"]

1. e4 {[%emt 0:01:00]} e6 {[%emt 0:05:00]} 2. d4 {[%emt 0:00:30]} d5 {[%emt 0:00:00]} 3. Nc3 {[%emt 0:00:00]} Bb4 {[%emt 0:01:00]} 4. exd5 {[%emt 0:02:00]} exd5 {[%emt 0:00:30]} 5. Bd3 {[%emt 0:00:30]} Nf6 {[%emt 0:00:30]} 6. Nge2 {[%emt 0:02:30]} Bg4 {[%emt 0:00:30]} 7. O-O {[%emt 0:00:30]} O-O {[%emt 0:00:30]} 8. Bg5 {[%emt 0:02:30]} c6 {[%emt 0:00:00]} 9. f3 {[%emt 0:00:30]} Bh5 {[%emt 0:02:00]} 10. Nf4 {[%emt 0:01:30]} Bg6 {[%emt 0:00:30]} 11. Nxg6 {[%emt 0:00:30]} hxg6 {[%emt 0:00:00]} 12. f4 {[%emt 0:01:30]} Qb6 {[%emt 0:04:00]} 13. Bxf6 {[%emt 0:02:30]} gxf6 {[%emt 0:00:30]} 14. Ne2 {[%emt 0:00:30]} Bd6 {[%emt 0:02:30]} 15. c3 {[%emt 0:08:30]} Qc7 {[%emt 0:06:30]} 16. Bc2 {[%emt 0:28:30]} Kg7 {[%emt 0:00:30]} 17. Qd3 {[%emt 0:00:30]} Rh8 {[%emt 0:01:30]} 18. Rae1 {[%emt 0:01:30]} Nd7 {[%emt 0:00:30]} 19. g3 {[%emt 0:03:30]} f5 {[%emt 0:00:30]} 20. c4 {[%emt 0:02:30]} dxc4 {[%emt 0:05:30]} 21. Qxc4 {[%emt 0:00:30]} Nf6 {[%emt 0:00:30]} 22. Nc3 {[%emt 0:00:30]} Rae8 {[%emt 0:02:30]} 23. Qd3 {[%emt 0:03:30]} Ng4 {[%emt 0:00:30]} 24. Rxe8 {[%emt 0:03:30]} Rxe8 {[%emt 0:00:30]} 25. Nd1 {[%emt 0:07:30]} Rh8 {[%emt 0:11:30]} 26. h4 {[%emt 0:00:30]} Re8 {[%emt 0:00:00]} 27. Qd2 {[%emt 0:06:30]} c5 {[%emt 0:05:00]} 28. d5 {[%emt 0:03:25]} c4 {[%emt 0:00:30]} 29. Rf3 {[%emt 0:02:01]} Qb6+ {[%emt 0:03:30]} 30. Kg2 {[%emt 0:00:40]} Bb4 {[%emt 0:00:00]} 31. Nc3 {[%emt 0:01:03]} Ne3+ {[%emt 0:07:00]} 32. Kh2 {[%emt 0:01:33]} Qc5 {[%emt 0:01:30]} 33. Ba4 {[%emt 0:05:37]} b5 {[%emt 0:03:30]} 34. Bxb5 {[%emt 0:01:07]} Ng4+ {[%emt 0:00:30]} 35. Kg2 {[%emt 0:00:11]} Re3 {[%emt 0:01:30]} 36. Rxe3 {[%emt 0:00:51]} Nxe3+ {[%emt 0:00:30]} 37. Kf3 {[%emt 0:01:51]} Ng4 {[%emt 0:00:00]} 38. a4 {[%emt 0:00:51]} Qg1 {[%emt 0:03:00]} 39. Ke2 {[%emt 0:03:06]} Qf2+ {[%emt 0:03:30]} 40. Kd1 {[%emt 0:00:22]} Ne3+ {[%emt 0:00:30]} 41. Kc1 {[%emt 0:02:48]} Qf1+ {[%emt 0:00:30]} 42. Qd1 {[%emt 0:01:12]} Nxd1 {[%emt 0:00:30]} 43. Nxd1 {[%emt 0:00:00]} Qd3 {[%emt 0:00:30]} 44. Nc3 {[%emt 0:00:05]} Bxc3 {[%emt 0:00:30]} 0-1

[Event "Turkish Cup 2024"]
[Site "Denizli"]
[Date "2024.08.04"]
[Round "8"]
[White "Sadik, Muhammed Selim"]
[Black "Yuksel, Davut Can"]
[Result "0-1"]
[ECO "A52"]
[WhiteElo "1798"]
[BlackElo "1882"]
[Annotator "NA RC"]
[PlyCount "62"]
[EventDate "2024.08.01"]
[EventType "swiss"]
[EventCountry "TUR"]
[SourceTitle "playchess.com"]
[Source "ChessBase"]
[SourceQuality "1"]
[TimeControl "5400+30"]

1. d4 {[%emt 0:01:00]} Nf6 {[%emt 0:01:00]} 2. c4 {[%emt 0:00:00]} e5 {[%emt 0:00:30]} 3. dxe5 {[%emt 0:00:00]} Ng4 {[%emt 0:00:30]} 4. e3 {[%emt 0:00:30]} Nxe5 {[%emt 0:00:00]} 5. f4 {[%emt 0:00:00]} Nec6 {[%emt 0:00:00]} 6. Nf3 {[%emt 0:00:00]} Bb4+ {[%emt 0:00:30]} 7. Bd2 {[%emt 0:00:30]} Bxd2+ {[%emt 0:00:30]} 8. Qxd2 {[%emt 0:00:30]} d6 {[%emt 0:00:30]} 9. Bd3 {[%emt 0:00:30]} Nd7 {[%emt 0:01:30]} 10. O-O {[%emt 0:00:30]} Nc5 {[%emt 0:01:30]} 11. Bc2 {[%emt 0:00:30]} a5 {[%emt 0:00:30]} 12. Nc3 {[%emt 0:00:30]} O-O {[%emt 0:04:30]} 13. Rad1 {[%emt 0:04:30]} h6 {[%emt 0:12:30]} 14. h3 {[%emt 0:12:30]} Be6 {[%emt 0:04:30]} 15. Nd5 {[%emt 0:00:30]} Nb4 {[%emt 0:04:30]} 16. Nxb4 {[%emt 0:00:30]} axb4 {[%emt 0:01:30]} 17. b3 {[%emt 0:01:30]} f5 {[%emt 0:10:30]} 18. Bb1 {[%emt 0:00:30]} Na6 {[%emt 0:01:30]} 19. Nd4 {[%emt 0:00:30]} Qf6 {[%emt 0:03:30]} 20. e4 {[%emt 0:05:30]} fxe4 {[%emt 0:03:30]} 21. Bxe4 {[%emt 0:00:30]} Nc5 {[%emt 0:01:30]} 22. Bb1 {[%emt 0:00:00]} Bf7 {[%emt 0:12:30]} 23. Qxb4 {[%emt 0:04:00]} Bg6 {[%emt 0:00:00]} 24. f5 {[%emt 0:01:30]} Bh5 {[%emt 0:00:00]} 25. Rd2 {[%emt 0:01:30]} Rae8 {[%emt 0:01:30]} 26. Nb5 {[%emt 0:00:30]} Re3 {[%emt 0:06:30]} 27. Nxc7 {[%emt 0:02:30]} Qg5 {[%emt 0:01:30]} 28. Kh1 {[%emt 0:02:30]} Be2 {[%emt 0:01:30]} 29. Re1 {[%emt 0:11:30]} Qf4 {[%emt 0:10:24]} 30. Rb2 {[%emt 0:07:30]} Rxh3+ {[%emt 0:00:47]} 31. Kg1 {[%emt 0:01:30]} Qe3# {[%emt 0:00:35]} 0-1

[Event "Turkish Cup 2024"]
[Site "Denizli"]
[Date "2024.08.04"]
[Round "8"]
[White "Saricam, Ege"]
[Black "Atis, Hasan"]
[Result "1-0"]
[ECO "B33"]
[WhiteElo "1794"]
[BlackElo "2080"]
[Annotator "RC"]
[PlyCount "123"]
[EventDate "2024.08.01"]
[EventType "swiss"]
[EventCountry "TUR"]
[SourceTitle "playchess.com"]
[Source "ChessBase"]
[SourceQuality "1"]
[TimeControl "5400+30"]

1. e4 {[%emt 0:01:00]} c5 {[%emt 0:02:00]} 2. Nf3 {[%emt 0:00:00]} Nc6 {[%emt 0:00:30]} 3. d4 {[%emt 0:00:00]} cxd4 {[%emt 0:00:30]} 4. Nxd4 {[%emt 0:00:30]} Nf6 {[%emt 0:00:00]} 5. Nxc6 {[%emt 0:00:00]} bxc6 {[%emt 0:00:00]} 6. Bd3 {[%emt 0:00:00]} e5 {[%emt 0:00:00]} 7. O-O {[%emt 0:03:30]} Be7 {[%emt 0:00:00]} 8. Qf3 {[%emt 0:01:30]} O-O {[%emt 0:00:30]} 9. Re1 {[%emt 0:00:30]} d6 {[%emt 0:00:30]} 10. c4 {[%emt 0:06:30]} Bg4 {[%emt 0:00:30]} 11. Qg3 {[%emt 0:00:30]} Be6 {[%emt 0:00:30]} 12. Nc3 {[%emt 0:01:30]} Qc8 {[%emt 0:00:30]} 13. h3 {[%emt 0:01:30]} Nh5 {[%emt 0:03:30]} 14. Qf3 {[%emt 0:00:30]} g6 {[%emt 0:00:30]} 15. Bh6 {[%emt 0:04:30]} Ng7 {[%emt 0:00:00]} 16. Qg3 {[%emt 0:04:30]} f6 {[%emt 0:06:00]} 17. Rad1 {[%emt 0:03:30]} Rd8 {[%emt 0:05:30]} 18. b4 {[%emt 0:06:30]} a6 {[%emt 0:05:30]} 19. a4 {[%emt 0:10:30]} Bf7 {[%emt 0:00:30]} 20. Rc1 {[%emt 0:13:30]} Nh5 {[%emt 0:33:30]} 21. Qf3 {[%emt 0:07:30]} g5 {[%emt 0:00:30]} 22. Ne2 {[%emt 0:00:30]} Kh8 {[%emt 0:10:30]} 23. Bxg5 {[%emt 0:01:30]} Rg8 {[%emt 0:00:30]} 24. Be3 {[%emt 0:05:30]} Qd8 {[%emt 0:11:34]} 25. b5 {[%emt 0:01:30]} axb5 {[%emt 0:03:56]} 26. cxb5 {[%emt 0:00:30]} d5 {[%emt 0:01:55]} 27. bxc6 {[%emt 0:11:25]} d4 {[%emt 0:00:02]} 28. Bc4 {[%emt 0:01:17]} Qe8 {[%emt 0:07:38]} 29. Bh6 {[%emt 0:05:46]} Rxa4 {[%emt 0:00:45]} 30. Bxf7 {[%emt 0:00:30]} Qxf7 {[%emt 0:00:30]} 31. Qf5 {[%emt 0:00:30]} Bd6 {[%emt 0:03:04]} 32. Kh1 {[%emt 0:04:33]} Ra2 {[%emt 0:02:09]} 33. Nxd4 {[%emt 0:01:08]} exd4 {[%emt 0:00:34]} 34. e5 {[%emt 0:01:07]} Ra5 {[%emt 0:02:41]} 35. e6 {[%emt 0:01:57]} Qc7 {[%emt 0:00:01]} 36. Qf3 {[%emt 0:01:04]} Be7 {[%emt 0:00:47]} 37. Bd2 {[%emt 0:00:21]} Ra2 {[%emt 0:00:33]} 38. Re2 {[%emt 0:00:36]} d3 {[%emt 0:00:47]} 39. Bf4 {[%emt 0:00:52]} Nxf4 {[%emt 0:00:43]} 40. Rxa2 {[%emt 0:00:04]} Rd8 {[%emt 0:00:14]} 41. Qe3 {[%emt 0:01:05]} Qd6 {[%emt 0:00:25]} 42. c7 {[%emt 0:01:10]} Rc8 {[%emt 0:00:01]} 43. Ra4 {[%emt 0:00:00]} Nxg2 {[%emt 0:00:58]} 44. Kxg2 {[%emt 0:00:12]} d2 {[%emt 0:00:10]} 45. Rd1 {[%emt 0:01:15]} Qc6+ {[%emt 0:00:30]} 46. Qe4 {[%emt 0:00:00]} Rg8+ {[%emt 0:00:00]} 47. Kh1 {[%emt 0:00:04]} Qxc7 {[%emt 0:00:22]} 48. Rd4 {[%emt 0:00:09]} Qa5 {[%emt 0:01:39]} 49. R4xd2 {[%emt 0:00:37]} Qh5 {[%emt 0:00:04]} 50. Rd3 {[%emt 0:00:04]} Rg5 {[%emt 0:00:55]} 51. Qf3 {[%emt 0:01:12]} Qh4 {[%emt 0:00:28]} 52. Rd8+ {[%emt 0:00:19]} Bxd8 {[%emt 0:00:33]} 53. Rxd8+ {[%emt 0:00:02]} Kg7 {[%emt 0:00:07]} 54. e7 {[%emt 0:00:15]} Qc4 {[%emt 0:00:40]} 55. Rd1 {[%emt 0:01:04]} Qe6 {[%emt 0:00:28]} 56. Rb1 {[%emt 0:00:40]} Kh6 {[%emt 0:00:42]} 57. h4 {[%emt 0:01:32]} Rg8 {[%emt 0:00:34]} 58. Qf4+ {[%emt 0:00:29]} Kg7 {[%emt 0:00:49]} 59. Rg1+ {[%emt 0:00:06]} Kf7 {[%emt 0:00:39]} 60. Rxg8 {[%emt 0:00:08]} Kxg8 {[%emt 0:00:14]} 61. Qb8+ {[%emt 0:00:04]} Kg7 {[%emt 0:00:18]} 62. Qf8+ {[%emt 0:00:06]} 1-0

[Event "Turkish Cup 2024"]
[Site "Denizli"]
[Date "2024.08.04"]
[Round "8"]
[White "Tufan, Kerem"]
[Black "Saygin, Nurettin"]
[Result "0-1"]
[ECO "B52"]
[WhiteElo "1783"]
[BlackElo "1937"]
[Annotator "RC"]
[PlyCount "136"]
[EventDate "2024.08.01"]
[EventType "swiss"]
[EventCountry "TUR"]
[SourceTitle "playchess.com"]
[Source "ChessBase"]
[SourceQuality "1"]
[TimeControl "5400+30"]

1. e4 {[%emt 0:02:00]} c5 {[%emt 0:03:00]} 2. Nf3 {[%emt 0:00:30]} d6 {[%emt 0:00:30]} 3. Bb5+ {[%emt 0:00:30]} Bd7 {[%emt 0:00:00]} 4. Bxd7+ {[%emt 0:00:00]} Nxd7 {[%emt 0:00:00]} 5. O-O {[%emt 0:00:00]} Ngf6 {[%emt 0:00:30]} 6. Re1 {[%emt 0:00:30]} e6 {[%emt 0:00:30]} 7. d4 {[%emt 0:00:30]} cxd4 {[%emt 0:00:30]} 8. Qxd4 {[%emt 0:00:00]} Be7 {[%emt 0:00:30]} 9. c4 {[%emt 0:00:00]} O-O {[%emt 0:01:30]} 10. Nc3 {[%emt 0:01:30]} a6 {[%emt 0:00:30]} 11. b3 {[%emt 0:15:30]} Rc8 {[%emt 0:06:30]} 12. Bb2 {[%emt 0:15:30]} Qa5 {[%emt 0:06:30]} 13. Rad1 {[%emt 0:15:30]} Rfd8 {[%emt 0:02:30]} 14. h3 {[%emt 0:07:30]} h6 {[%emt 0:09:30]} 15. Kh1 {[%emt 0:02:30]} Nf8 {[%emt 0:12:30]} 16. Qd2 {[%emt 0:05:30]} Qc7 {[%emt 0:04:30]} 17. Nd4 {[%emt 0:11:30]} Ng6 {[%emt 0:04:30]} 18. f4 {[%emt 0:01:03]} d5 {[%emt 0:20:30]} 19. e5 {[%emt 0:08:38]} Nh5 {[%emt 0:02:30]} 20. cxd5 {[%emt 0:06:21]} exd5 {[%emt 0:01:30]} 21. Nce2 {[%emt 0:00:38]} Bh4 {[%emt 0:04:07]} 22. Rf1 {[%emt 0:00:47]} Ng3+ {[%emt 0:01:51]} 23. Nxg3 {[%emt 0:00:10]} Bxg3 {[%emt 0:00:00]} 24. Nf5 {[%emt 0:00:52]} Bxf4 {[%emt 0:02:25]} 25. Rxf4 {[%emt 0:00:39]} Nxf4 {[%emt 0:00:30]} 26. Qxf4 {[%emt 0:00:00]} Qc2 {[%emt 0:00:00]} 27. Rc1 {[%emt 0:03:49]} Qe4 {[%emt 0:00:49]} 28. Qxe4 {[%emt 0:01:27]} Rxc1+ {[%emt 0:00:09]} 29. Bxc1 {[%emt 0:00:48]} dxe4 {[%emt 0:00:30]} 30. Nd6 {[%emt 0:00:30]} f6 {[%emt 0:00:30]} 31. Bb2 {[%emt 0:00:30]} fxe5 {[%emt 0:00:00]} 32. Bxe5 {[%emt 0:01:07]} e3 {[%emt 0:00:06]} 33. Kg1 {[%emt 0:00:06]} Rf8 {[%emt 0:00:27]} 34. Nxb7 {[%emt 0:00:30]} e2 {[%emt 0:00:12]} 35. Bg3 {[%emt 0:00:26]} Rf1+ {[%emt 0:00:41]} 36. Kh2 {[%emt 0:00:08]} e1=Q {[%emt 0:00:18]} 37. Bxe1 {[%emt 0:00:33]} Rxe1 {[%emt 0:00:30]} 38. Nc5 {[%emt 0:00:00]} a5 {[%emt 0:00:00]} 39. a3 {[%emt 0:00:00]} Re5 {[%emt 0:01:31]} 40. b4 {[%emt 0:00:02]} axb4 {[%emt 0:00:55]} 41. axb4 {[%emt 0:00:02]} Re3 {[%emt 0:00:24]} 42. Kg1 {[%emt 0:00:25]} Kf7 {[%emt 0:03:38]} 43. Kf2 {[%emt 0:00:12]} Ra3 {[%emt 0:00:01]} 44. Ke2 {[%emt 0:02:00]} Ke7 {[%emt 0:00:15]} 45. Nd3 {[%emt 0:00:50]} Ra2+ {[%emt 0:00:46]} 46. Kf3 {[%emt 0:00:46]} Rd2 {[%emt 0:00:14]} 47. Nf4 {[%emt 0:00:42]} g5 {[%emt 0:01:00]} 48. Ne2 {[%emt 0:00:22]} Rb2 {[%emt 0:00:21]} 49. Nd4 {[%emt 0:00:18]} Kf6 {[%emt 0:00:35]} 50. Nc6 {[%emt 0:01:05]} Ke6 {[%emt 0:00:48]} 51. Nd4+ {[%emt 0:00:23]} Kd5 {[%emt 0:01:53]} 52. Nf5 {[%emt 0:00:39]} h5 {[%emt 0:00:25]} 53. Ng7 {[%emt 0:00:34]} Rb3+ {[%emt 0:01:07]} 54. Kf2 {[%emt 0:00:52]} h4 {[%emt 0:00:13]} 55. Nf5 {[%emt 0:00:08]} Ke4 {[%emt 0:01:19]} 56. Nd6+ {[%emt 0:00:31]} Kf4 {[%emt 0:00:22]} 57. b5 {[%emt 0:00:28]} Rb2+ {[%emt 0:03:46]} 58. Kf1 {[%emt 0:00:30]} Kg3 {[%emt 0:01:33]} 59. Ne4+ {[%emt 0:00:34]} Kf4 {[%emt 0:00:44]} 60. Nd6 {[%emt 0:00:40]} Rd2 {[%emt 0:00:14]} 61. Nc8 {[%emt 0:00:22]} Kg3 {[%emt 0:00:44]} 62. b6 {[%emt 0:00:54]} Rb2 {[%emt 0:00:12]} 63. Nd6 {[%emt 0:00:00]} Rxb6 {[%emt 0:00:13]} 64. Ne4+ {[%emt 0:00:41]} Kf4 {[%emt 0:00:14]} 65. Nf2 {[%emt 0:00:30]} Ra6 {[%emt 0:00:10]} 66. Nd3+ {[%emt 0:00:22]} Ke3 {[%emt 0:00:36]} 67. Ne1 {[%emt 0:00:54]} Ra1 {[%emt 0:00:07]} 68. g3 {[%emt 0:00:07]} hxg3 {[%emt 0:00:25]} 0-1

[Event "Turkish Cup 2024"]
[Site "Denizli"]
[Date "2024.08.04"]
[Round "8"]
[White "Tutmaz, Bugra Hamza"]
[Black "Sevig, Mert Can"]
[Result "0-1"]
[ECO "A48"]
[WhiteElo "1761"]
[BlackElo "1818"]
[Annotator "NA COMBH"]
[PlyCount "84"]
[EventDate "2024.08.01"]
[EventType "swiss"]
[EventCountry "TUR"]
[SourceTitle "playchess.com"]
[Source "ChessBase"]
[SourceQuality "1"]
[TimeControl "5400+30"]

1. d4 {[%emt 0:01:00]} Nf6 {[%emt 0:01:00]} 2. Nf3 {[%emt 0:00:00]} g6 {[%emt 0:00:30]} 3. Bf4 {[%emt 0:00:00]} Bg7 {[%emt 0:00:30]} 4. e3 {[%emt 0:00:00]} O-O {[%emt 0:00:00]} 5. Be2 {[%emt 0:00:00]} d6 {[%emt 0:00:00]} 6. h3 {[%emt 0:00:30]} Nbd7 {[%emt 0:00:00]} 7. O-O {[%emt 0:00:30]} b6 {[%emt 0:00:00]} 8. Nbd2 {[%emt 0:00:30]} Bb7 {[%emt 0:00:00]} 9. Bh2 {[%emt 0:00:30]} Ne4 {[%emt 0:00:00]} 10. Ne1 {[%emt 0:04:30]} Nxd2 {[%emt 0:00:30]} 11. Qxd2 {[%emt 0:00:30]} e5 {[%emt 0:00:00]} 12. Nf3 {[%emt 0:06:30]} Qe7 {[%emt 0:02:00]} 13. Rfd1 {[%emt 0:00:00]} Rae8 {[%emt 0:11:30]} 14. c3 {[%emt 0:03:00]} e4 {[%emt 0:04:30]} 15. Ne1 {[%emt 0:00:30]} f5 {[%emt 0:00:00]} 16. c4 {[%emt 0:00:30]} g5 {[%emt 0:21:00]} 17. b4 {[%emt 0:05:30]} c5 {[%emt 0:14:30]} 18. Nc2 {[%emt 0:04:30]} cxd4 {[%emt 0:09:30]} 19. Nxd4 {[%emt 0:01:30]} f4 {[%emt 0:00:30]} 20. Rab1 {[%emt 0:04:30]} Ne5 {[%emt 0:14:49]} 21. Nb5 {[%emt 0:18:30]} Nd3 {[%emt 0:01:24]} 22. Bxd3 {[%emt 0:15:30]} exd3 {[%emt 0:00:03]} 23. exf4 {[%emt 0:00:30]} Qe4 {[%emt 0:04:46]} 24. f3 {[%emt 0:01:30]} Qxc4 {[%emt 0:00:12]} 25. Na3 {[%emt 0:01:30]} Qd4+ {[%emt 0:01:55]} 26. Kh1 {[%emt 0:00:30]} Re2 {[%emt 0:01:07]} 27. Qxe2 {[%emt 0:00:30]} dxe2 {[%emt 0:00:01]} 28. Rxd4 {[%emt 0:00:30]} Bxd4 {[%emt 0:00:11]} 29. Nc2 {[%emt 0:00:30]} Bf2 {[%emt 0:03:23]} 30. Bg1 {[%emt 0:03:30]} Bg3 {[%emt 0:00:04]} 31. Bh2 {[%emt 0:03:30]} gxf4 {[%emt 0:00:05]} 32. Bxg3 {[%emt 0:00:30]} fxg3 {[%emt 0:00:00]} 33. Nd4 {[%emt 0:00:00]} Be4 {[%emt 0:00:35]} 34. Re1 {[%emt 0:00:00]} Bd3 {[%emt 0:00:01]} 35. Kg1 {[%emt 0:02:30]} Rc8 {[%emt 0:01:03]} 36. f4 {[%emt 0:02:30]} Rc4 {[%emt 0:00:24]} 37. Nb3 {[%emt 0:02:30]} Rxf4 {[%emt 0:00:21]} 38. Nd2 {[%emt 0:00:30]} Rf2 {[%emt 0:01:13]} 39. Rc1 {[%emt 0:00:30]} Kf7 {[%emt 0:00:39]} 40. a4 {[%emt 0:00:30]} Ke6 {[%emt 0:00:31]} 41. a5 {[%emt 0:00:30]} bxa5 {[%emt 0:00:30]} 42. bxa5 {[%emt 0:00:00]} Kf5 {[%emt 0:00:00]} 0-1